bitfinex/quotes_SOLUSD_20250612
["timestamp","ask_amount","ask_price","bid_price","bid_amount"]
[1749721214557,8.81712557,159.8,159.78,0.04]
[1749721214754,0.04000005,159.79,159.78,0.04]
[1749721217346,8.85712562,159.79,159.78,0.04]
[1749721220176,15.11533952,159.79,159.78,0.04]
[1749721220551,33.76498838,159.79,159.78,0.04]
[1749721220755,41.79258838,159.79,159.78,0.04]
[1749721225965,8.06760005,159.79,159.78,0.04]
[1749721226169,0.04000005,159.79,159.78,8.85712557]
[1749721227066,0.04000005,159.79,159.78,0.04]
[1749721233473,13.82206937,159.79,159.78,0.04]
[1749721233780,0.04000005,159.79,159.78,0.04]
[1749721236052,0.04000005,159.79,159.78,14.10639246]
[1749721247790,0.04000005,159.79,159.78,0.04]
[1749721249791,13.82206937,159.79,159.78,0.04]
[1749721250589,0.04000005,159.79,159.78,0.04]
[1749721251690,13.82206937,159.79,159.78,0.04]
[1749721252694,20.08028327,159.79,159.78,0.04]
[1749721253294,13.82206937,159.79,159.78,0.04]
[1749721254093,20.08028327,159.79,159.78,0.04]
[1749721256691,13.82206937,159.79,159.78,0.04]
[1749721257590,20.08028327,159.79,159.78,0.04]
[1749721258393,13.82206937,159.79,159.78,0.04]
[1749721259783,0.04000005,159.79,159.78,0.04]
[1749721262404,13.82206937,159.79,159.78,0.04]
[1749721264003,20.08028327,159.79,159.78,0.04]
[1749721264500,13.82206937,159.79,159.78,0.04]
[1749721265504,0.04000005,159.79,159.78,0.04]
[1749721271212,13.82206937,159.79,159.78,0.04]
[1749721271384,0.04000005,159.79,159.78,0.04]
[1749721276716,0.04000005,159.79,159.78,9.14445664]
[1749721277015,0.04000005,159.79,159.78,0.32432314]
[1749721279800,0.04000005,159.79,159.78,9.14445664]
[1749721280005,0.04000005,159.79,159.78,0.32432314]
[1749721281514,0.04000005,159.79,159.78,0.04]
[1749721289123,0.04000005,159.79,159.78,8.8601335]
[1749721289328,0.04000005,159.79,159.78,9.14445664]
[1749721291426,0.04000005,159.79,159.78,8.90079294]
[1749721301136,0.04000005,159.79,159.78,14.30079294]
[1749721304333,0.04000005,159.79,159.78,5.68432314]
[1749721304534,0.04000005,159.79,159.78,14.50445664]
[1749721320544,0.04000005,159.79,159.78,5.4]
[1749721351775,0.04000005,159.79,159.78,14.2201335]
[1749721353451,0.04000005,159.79,159.78,5.4]
[1749721357457,0.04000005,159.79,159.78,14.50445664]
[1749721385578,0.04000005,159.79,159.78,5.4]
[1749721385774,8.86013355,159.79,159.78,5.4]
[1749721386502,0.04000005,159.79,159.78,5.4]
[1749721386674,8.86013355,159.79,159.78,5.4]
[1749721387382,15.11834745,159.79,159.78,5.4]
[1749721389106,0.04000005,159.79,159.78,5.4]
[1749721389487,8.86013355,159.79,159.78,5.4]
[1749721391219,15.11834745,159.79,159.78,5.4]
[1749721400714,6.29821395,159.79,159.78,5.4]
[1749721400914,0.04000005,159.79,159.78,5.4]
[1749721401791,15.11834745,159.79,159.78,5.4]
[1749721405208,0.04000005,159.79,159.78,5.4]
[1749721405397,8.86013355,159.79,159.78,5.4]
[1749721406805,41.11834745,159.79,159.78,5.4]
[1749721408692,32.29821395,159.79,159.78,5.4]
[1749721409606,41.11834745,159.79,159.78,5.4]
[1749721412812,41.11834745,159.79,159.74,14.2001335]
[1749721414425,0.04000005,159.79,159.77,8.8201335]
[1749721414801,0.04000005,159.79,159.75,8.8201335]
[1749721415006,8.8201335,159.78,159.74,5.38]
[1749721416327,15.07900882,159.78,159.74,5.38]
[1749721417238,8.8201335,159.77,159.74,5.38]
[1749721418337,15.07946832,159.77,159.74,5.38]
[1749721422334,8.8201335,159.78,159.74,5.38]
[1749721423740,6.2589973,159.77,159.74,5.38]
[1749721426437,6.2589973,159.77,159.74,14.2001335]
[1749721427642,6.2589973,159.77,159.74,5.38]
[1749721427832,6.2589973,159.77,159.74,14.2001335]
[1749721428340,6.2589973,159.77,159.74,5.38]
[1749721428717,6.2589973,159.77,159.74,14.2001335]
[1749721431728,8.8201335,159.77,159.74,5.38]
[1749721431937,8.8201335,159.78,159.74,5.38]
[1749721432726,8.8201335,159.78,159.74,14.2001335]
[1749721432954,6.29821395,159.79,159.75,8.8201335]
[1749721433338,15.11834745,159.79,159.74,14.2001335]
[1749721436933,8.8201335,159.78,159.74,14.2001335]
[1749721438857,6.2589973,159.77,159.74,14.2001335]
[1749721441051,15.07889788,159.78,159.74,14.2001335]
[1749721441349,6.29833001,159.79,159.75,8.8201335]
[1749721441536,6.29833001,159.79,159.74,5.38]
[1749721441733,6.29833001,159.79,159.75,8.8201335]
[1749721443159,15.11846351,159.79,159.74,14.2001335]
[1749721443460,15.11846351,159.79,159.75,8.8201335]
[1749721445264,15.11846351,159.79,159.74,14.2001335]
[1749721449050,6.29833001,159.79,159.74,14.2001335]
[1749721449356,15.11846351,159.79,159.74,14.2001335]
[1749721450032,15.11846351,159.79,159.74,5.38]
[1749721450231,15.11846351,159.79,159.75,8.8201335]
[1749721450957,8.8201335,159.78,159.74,5.38]
[1749721452442,6.2589973,159.77,159.74,14.2001335]
[1749721453337,6.2589973,159.77,159.74,5.38]
[1749721453538,6.2589973,159.77,159.74,14.2001335]
[1749721453859,6.2589973,159.77,159.74,5.38]
[1749721454963,6.2589973,159.77,159.74,14.2001335]
[1749721455152,6.2589973,159.77,159.74,5.38]
[1749721455466,6.2589973,159.77,159.74,14.2001335]
[1749721456866,6.29821395,159.79,159.74,14.2001335]
[1749721457065,15.11834745,159.79,159.74,14.2001335]
[1749721458665,6.29821395,159.79,159.74,14.2001335]
[1749721458965,6.29821395,159.79,159.75,8.8201335]
[1749721463375,15.11834745,159.79,159.75,8.8201335]
[1749721467880,6.29821395,159.79,159.75,8.8201335]
[1749721468784,6.29821395,159.79,159.74,5.38]
[1749721468969,6.29821395,159.79,159.75,8.8201335]
[1749721473278,6.29821395,159.79,159.74,14.2001335]
[1749721475077,6.29821395,159.79,159.75,8.8201335]
[1749721476280,6.29821395,159.79,159.74,5.38]
[1749721476459,6.29821395,159.79,159.74,14.2001335]
[1749721476656,6.29821395,159.79,159.75,8.8201335]
[1749721477580,6.29821395,159.79,159.74,14.2001335]
[1749721482490,10.94859614,159.78,159.74,14.2001335]
[1749721482674,6.25876066,159.78,159.74,14.2001335]
[1749721482985,6.25876066,159.78,159.74,5.38]
[1749721483584,6.29821395,159.79,159.74,5.38]
[1749721483769,6.29821395,159.79,159.74,14.2001335]
[1749721490782,6.29821395,159.79,159.75,8.8201335]
[1749721497509,6.29821395,159.79,159.74,5.38]
[1749721497683,6.29821395,159.79,159.75,8.8201335]
[1749721500308,0.04000005,159.79,159.76,8.8201335]
[1749721500491,0.04000005,159.79,159.74,5.38]
[1749721500702,34.86013355,159.79,159.74,14.2001335]
[1749721501008,13.50995552,159.78,159.74,5.38]
[1749721501195,8.8201335,159.77,159.74,5.38]
[1749721502806,6.25938908,159.76,159.74,5.38]
[1749721504211,15.07952258,159.76,159.74,5.38]
[1749721504390,13.50934798,159.75,159.74,5.38]
[1749721504593,6.25938908,159.76,159.74,14.2001335]
[1749721504793,6.2589973,159.77,159.74,5.38]
[1749721506406,2.34590522,159.78,159.75,8.8201335]
[1749721506713,0.04000005,159.79,159.77,8.8201335]
[1749721506911,41.11841098,159.79,159.74,5.38]
[1749721507097,13.50650444,159.78,159.74,5.38]
[1749721507294,8.8201335,159.78,159.74,5.38]
[1749721507697,8.8201335,159.78,159.74,14.2001335]
[1749721508414,15.07873908,159.78,159.74,5.38]
[1749721508605,15.07873908,159.78,159.73,8.8201335]
[1749721508807,4.68622957,159.77,159.73,8.8201335]
[1749721509117,6.25860558,159.78,159.74,8.8201335]
[1749721511526,6.25860558,159.78,159.75,8.8201335]
[1749721512226,6.25860558,159.78,159.74,8.8201335]
[1749721514408,26.0,159.77,159.72,5.36]
[1749721514716,6.2597809,159.75,159.72,5.36]
[1749721515438,8.8201335,159.74,159.72,5.36]
[1749721516821,6.2605647,159.73,159.72,5.36]
[1749721522630,6.30056475,159.73,159.72,5.36]
[1749721525807,0.04000005,159.73,159.72,5.36]
[1749721526813,6.30056475,159.73,159.72,5.36]
[1749721529664,15.12069825,159.73,159.67,1.5479]
[1749721529827,15.12069825,159.73,159.69,8.8201335]
[1749721530738,6.30056475,159.73,159.69,8.8201335]
[1749721530945,8.86013355,159.73,159.69,8.8201335]
[1749721531551,0.04000005,159.73,159.7,8.8201335]
[1749721533861,0.04000005,159.73,159.71,8.8201335]
[1749721534666,0.04000005,159.73,159.72,8.8201335]
[1749721535750,0.04000005,159.73,159.72,10.3404335]
[1749721536132,0.04000005,159.73,159.72,10.62475664]
[1749721536642,5.86175117,159.84,159.72,10.62475664]
[1749721536643,22.35608467,159.86,159.75,26.0]
[1749721536826,4.6711601,159.85,159.83,8.8201335]
[1749721537032,56.0311601,159.86,159.82,8.8201335]
[1749721537232,10.92702497,159.85,159.82,8.8201335]
[1749721537432,10.92702497,159.85,159.79,5.36]
[1749721537433,6.25586487,159.85,159.83,8.8201335]
[1749721537638,6.25586487,159.85,159.82,8.8201335]
[1749721537852,6.25586487,159.85,159.79,5.36]
[1749721538032,6.25586487,159.85,159.82,8.8201335]
[1749721538442,6.25586487,159.85,159.79,5.36]
[1749721538643,6.25586487,159.85,159.82,8.8201335]
[1749721539153,6.25547353,159.86,159.82,8.8201335]
[1749721539338,6.25547353,159.86,159.82,13.77249614]
[1749721540436,6.25547353,159.86,159.83,13.77249614]
[1749721542963,20.02796967,159.86,159.82,13.77249614]
[1749721543160,6.25547353,159.86,159.82,13.77249614]
[1749721543962,6.25547353,159.86,159.83,13.77249614]
[1749721544161,6.25547353,159.86,159.84,13.77249614]
[1749721544364,6.25547353,159.86,159.79,5.36]
[1749721544573,6.25547353,159.86,159.83,13.77249614]
[1749721545666,6.25547353,159.86,159.82,13.77249614]
[1749721546370,20.02796967,159.86,159.82,13.77249614]
[1749721546568,13.77249614,159.85,159.79,5.36]
[1749721546785,18.64964886,159.84,159.79,5.36]
[1749721547075,13.77249614,159.83,159.79,5.36]
[1749721547242,13.77249614,159.81,159.79,5.36]
[1749721547450,13.77249614,159.8,159.79,5.36]
[1749721548440,20.03031841,159.8,159.79,5.36]
[1749721548644,6.25782227,159.8,159.79,5.36]
[1749721549159,31.59755507,159.81,159.79,5.36]
[1749721549361,26.0,159.82,159.8,13.77249614]
[1749721549967,26.0,159.82,159.79,19.13249614]
[1749721550570,32.25724964,159.82,159.79,19.13249614]
[1749721557575,32.25724964,159.82,159.79,5.36]
[1749721557770,46.02974578,159.82,159.79,5.36]
[1749721559963,6.25782227,159.8,159.79,5.36]
[1749721560658,38.67996727,159.8,159.79,5.36]
[1749721560971,38.67996727,159.8,159.73,19.13249614]
[1749721560972,18.64964886,159.79,159.73,19.13249614]
[1749721561275,13.77249614,159.77,159.73,19.13249614]
[1749721561965,6.25938908,159.76,159.73,19.13249614]
[1749721562561,13.77249614,159.75,159.73,5.36]
[1749721563776,6.26017278,159.74,159.73,5.36]
[1749721565473,25.34,159.76,159.73,19.13249614]
[1749721565671,6.25908578,159.77,159.74,13.77249614]
[1749721567571,6.25908578,159.77,159.73,19.13249614]
[1749721569166,13.77249614,159.76,159.73,5.36]
[1749721569480,13.77249614,159.75,159.73,5.36]
[1749721571494,6.26017278,159.74,159.73,5.36]
[1749721573867,6.25940027,159.76,159.73,19.13249614]
[1749721574068,26.0,159.75,159.73,19.13249614]
[1749721574368,6.25915233,159.77,159.74,13.77249614]
[1749721575189,6.25915233,159.77,159.73,19.13249614]
[1749721575391,20.03164847,159.77,159.73,19.13249614]
[1749721575685,6.25915233,159.77,159.73,19.13249614]
[1749721577881,6.25915233,159.77,159.73,5.36]
[1749721578079,13.77249614,159.77,159.73,19.13249614]
[1749721579191,6.25938908,159.76,159.73,19.13249614]
[1749721579886,6.25938908,159.76,159.73,5.36]
[1749721580089,6.25938908,159.76,159.73,19.13249614]
[1749721580590,6.2589973,159.77,159.73,19.13249614]
[1749721582496,6.2589973,159.77,159.73,5.36]
[1749721583294,20.03149344,159.77,159.73,5.36]
[1749721585496,20.03110172,159.78,159.73,5.36]
[1749721586517,20.03110172,159.78,159.73,19.13249614]
[1749721593806,13.77249614,159.77,159.73,5.36]
[1749721594318,13.77249614,159.77,159.73,19.13249614]
[1749721594694,20.03152364,159.77,159.73,19.13249614]
[1749721595122,6.2590275,159.77,159.73,19.13249614]
[1749721596705,20.03152364,159.77,159.73,19.13249614]
[1749721598119,13.77249614,159.77,159.73,19.13249614]
[1749721599208,20.03175627,159.77,159.73,19.13249614]
[1749721602632,20.03175627,159.77,159.68,8.1382]
[1749721602633,13.77249614,159.75,159.68,8.1382]
[1749721602806,13.77249614,159.74,159.69,19.13249614]
[1749721603121,44.64964886,159.76,159.73,13.77249614]
[1749721603122,26.0,159.76,159.73,13.77249614]
[1749721603322,6.25926013,159.77,159.75,13.77249614]
[1749721603738,6.25872527,159.78,159.75,13.77249614]
[1749721603911,10.94023698,159.78,159.75,13.77249614]
[1749721604222,6.25872527,159.78,159.75,13.77249614]
[1749721605108,20.03122141,159.78,159.74,13.77249614]
[1749721605423,20.03122141,159.78,159.7,0.28432314]
[1749721605424,4.68516145,159.77,159.73,13.77249614]
[1749721605626,4.68516145,159.77,159.71,13.77249614]
[1749721605627,13.77249614,159.76,159.71,13.77249614]
[1749721606329,13.77249614,159.76,159.69,5.36]
[1749721606535,13.77249614,159.76,159.71,13.77249614]
[1749721606717,13.77249614,159.75,159.7,13.77249614]
[1749721606909,6.26017278,159.74,159.7,13.77249614]
[1749721607110,20.03266892,159.74,159.69,19.13249614]
[1749721608623,20.03266892,159.74,159.69,5.36]
[1749721608805,20.03266892,159.74,159.69,19.13249614]
[1749721610215,20.03266892,159.74,159.69,5.36]
[1749721610418,20.03266892,159.74,159.69,19.13249614]
[1749721611023,20.03266892,159.74,159.7,13.77249614]
[1749721611834,13.77249614,159.72,159.69,5.36]
[1749721612738,13.77249614,159.71,159.69,5.36]
[1749721614015,35.68599685,159.72,159.69,5.36]
[1749721615433,13.77249614,159.71,159.69,5.36]
[1749721615644,35.68599685,159.72,159.69,5.36]
[1749721619125,6.26070166,159.73,159.7,13.77249614]
[1749721619548,6.26070166,159.73,159.71,13.77249614]
[1749721619846,6.26070166,159.73,159.7,13.77249614]
[1749721620739,20.0331978,159.73,159.69,5.36]
[1749721621038,13.77249614,159.72,159.69,5.36]
[1749721621430,6.26134869,159.71,159.69,5.36]
[1749721622524,46.03384483,159.71,159.69,5.36]
[1749721622726,13.77249614,159.7,159.69,5.36]
[1749721622928,46.03384483,159.71,159.69,5.36]
[1749721623750,32.26134869,159.71,159.69,5.36]
[1749721626650,18.64964886,159.74,159.69,19.13249614]
[1749721626834,26.0,159.72,159.71,13.77249614]
[1749721627435,26.0,159.72,159.7,13.77249614]
[1749721628345,32.26103389,159.72,159.69,19.13249614]
[1749721630539,32.26103389,159.72,159.69,5.36]
[1749721630737,32.26103389,159.72,159.69,19.13249614]
[1749721630952,32.26103389,159.72,159.69,5.36]
[1749721631438,57.782145,159.71,159.64,1.6137]
[1749721631647,13.77249614,159.7,159.65,19.13249614]
[1749721631841,25.36,159.71,159.68,13.77249614]
[1749721632039,25.36,159.71,159.67,13.77249614]
[1749721632740,6.26174076,159.7,159.67,13.77249614]
[1749721633660,6.26174076,159.7,159.68,13.77249614]
[1749721636648,6.26174076,159.7,159.67,13.77249614]
[1749721638353,20.03384483,159.71,159.67,13.77249614]
[1749721638658,26.0,159.67,159.61,6.0795]
[1749721638851,26.0,159.67,159.59,1.651]
[1749721638852,39.77249614,159.67,159.62,5.36]
[1749721639039,39.77249614,159.67,159.62,19.13249614]
[1749721639859,13.77249614,159.66,159.62,19.13249614]
[1749721640163,39.13249614,159.66,159.62,5.36]
[1749721640367,6.26370184,159.65,159.62,5.36]
[1749721640562,6.26370184,159.65,159.62,19.13249614]
[1749721641457,6.26370184,159.65,159.63,13.77249614]
[1749721643571,6.26370184,159.65,159.62,5.36]
[1749721643752,6.26370184,159.65,159.62,19.13249614]
[1749721646372,6.26370184,159.65,159.63,13.77249614]
[1749721646572,6.26370184,159.65,159.62,5.36]
[1749721646870,6.26370184,159.65,159.63,13.77249614]
[1749721647078,6.26370184,159.65,159.62,19.13249614]
[1749721647457,6.26370184,159.65,159.62,5.36]
[1749721647771,6.26370184,159.65,159.62,19.13249614]
[1749721649359,6.26370184,159.65,159.63,13.77249614]
[1749721649666,6.26370184,159.65,159.62,5.36]
[1749721649866,6.26370184,159.65,159.63,13.77249614]
[1749721650173,6.26370184,159.65,159.62,5.36]
[1749721650474,6.26370184,159.65,159.62,19.13249614]
[1749721650674,6.26370184,159.65,159.62,5.36]
[1749721653355,6.26370184,159.65,159.62,19.13249614]
[1749721654165,6.26370184,159.65,159.62,5.36]
[1749721654374,6.26370184,159.65,159.62,19.13249614]
[1749721656168,6.26370184,159.65,159.62,5.36]
[1749721656365,6.26370184,159.65,159.62,19.13249614]
[1749721657455,6.26370184,159.65,159.62,5.36]
[1749721658873,35.69545259,159.65,159.62,5.36]
[1749721660177,13.77249614,159.64,159.62,5.36]
[1749721660568,6.26448662,159.63,159.62,5.36]
[1749721661260,20.03698276,159.63,159.58,5.36]
[1749721661462,20.03698276,159.63,159.58,19.13249614]
[1749721661871,61.05819932,159.63,159.58,19.13249614]
[1749721662384,61.05819932,159.63,159.58,5.36]
[1749721662385,13.77249614,159.62,159.58,5.36]
[1749721662562,6.26527159,159.61,159.58,19.13249614]
[1749721663461,6.26527159,159.61,159.58,5.36]
[1749721663664,6.26527159,159.61,159.58,19.13249614]
[1749721664176,20.03776773,159.61,159.58,5.36]
[1749721664382,6.26527159,159.61,159.58,5.36]
[1749721665581,13.77249614,159.59,159.58,5.36]
[1749721665778,13.77249614,159.59,159.56,5.36]
[1749721665985,18.64964886,159.6,159.56,5.36]
[1749721666177,13.77249614,159.59,159.56,5.36]
[1749721667675,6.26644942,159.58,159.56,5.36]
[1749721668679,20.03894556,159.58,159.56,5.36]
[1749721669068,13.77249614,159.57,159.56,5.36]
[1749721669973,20.03933827,159.57,159.56,5.36]
[1749721671576,6.26684213,159.57,159.56,5.36]
[1749721671779,25.36,159.61,159.56,19.13249614]
[1749721671989,26.0,159.59,159.57,13.77249614]
[1749721672170,6.26566416,159.6,159.58,13.77249614]
[1749721673278,6.26566416,159.6,159.56,5.36]
[1749721673480,6.26566416,159.6,159.57,13.77249614]
[1749721677699,6.26566416,159.6,159.56,5.36]
[1749721677875,6.26566416,159.6,159.57,13.77249614]
[1749721679977,6.26566416,159.6,159.56,19.13249614]
[1749721682782,20.0381603,159.6,159.56,5.36]
[1749721682993,20.0381603,159.6,159.56,19.13249614]
[1749721683198,20.0381603,159.6,159.56,5.36]
[1749721683497,20.0381603,159.6,159.56,19.13249614]
[1749721684183,20.0381603,159.6,159.56,5.36]
[1749721684383,13.77249614,159.59,159.56,5.36]
[1749721684587,6.26644942,159.58,159.56,5.36]
[1749721691483,6.26605677,159.59,159.56,5.36]
[1749721693909,6.26605677,159.59,159.56,19.13249614]
[1749721694088,6.26605677,159.59,159.56,5.36]
[1749721694908,26.0,159.6,159.58,13.77249614]
[1749721695095,44.00964886,159.63,159.58,13.77249614]
[1749721695096,57.782145,159.63,159.58,13.77249614]
[1749721695291,26.0,159.6,159.59,13.77249614]
[1749721696408,13.77249614,159.64,159.59,13.77249614]
[1749721696579,13.77249614,159.64,159.6,13.77249614]
[1749721696781,42.44130251,159.65,159.6,13.77249614]
[1749721696980,39.77249614,159.64,159.6,13.77249614]
[1749721697388,39.77249614,159.64,159.59,13.77249614]
[1749721697589,46.03659035,159.64,159.59,13.77249614]
[1749721699715,71.39659035,159.64,159.59,13.77249614]
[1749721700193,13.77249614,159.63,159.58,13.77249614]
[1749721702013,6.26487908,159.62,159.58,13.77249614]
[1749721707294,15.1050006,159.63,159.58,8.84051398]
[1749721707705,15.1050006,159.63,159.59,8.84051398]
[1749721707897,15.1050006,159.63,159.56,6.8719]
[1749721707898,6.26448662,159.63,159.6,8.84051398]
[1749721708506,6.26448662,159.63,159.59,8.84051398]
[1749721708896,15.1050006,159.63,159.59,8.84051398]
[1749721710716,15.1050006,159.63,159.56,6.8719]
[1749721710923,15.1050006,159.63,159.59,8.84051398]
[1749721711109,6.26448662,159.63,159.59,8.84051398]
[1749721711309,32.2642634,159.64,159.61,8.84051398]
[1749721712005,26.0,159.65,159.62,8.84051398]
[1749721712202,6.26303878,159.67,159.64,8.84051398]
[1749721712402,6.26303878,159.67,159.65,8.84051398]
[1749721712827,6.26303878,159.67,159.64,8.84051398]
[1749721713217,20.06862802,159.67,159.62,13.80558924]
[1749721713425,6.26303878,159.67,159.6,13.80558924]
[1749721713631,13.80558924,159.65,159.6,13.80558924]
[1749721713929,13.80558924,159.64,159.59,13.80558924]
[1749721715236,6.26448662,159.63,159.59,13.80558924]
[1749721717832,6.26401292,159.65,159.61,13.80558924]
[1749721718038,26.0,159.64,159.62,13.80558924]
[1749721718334,6.26401292,159.65,159.62,13.80558924]
[1749721719536,20.06960216,159.65,159.61,13.80558924]
[1749721719722,6.26401292,159.65,159.61,13.80558924]
[1749721719914,20.06960216,159.65,159.61,13.80558924]
[1749721724647,20.06960216,159.65,159.6,13.80558924]
[1749721724816,6.26401292,159.65,159.6,13.80558924]
[1749721725143,20.06960216,159.65,159.6,13.80558924]
[1749721726315,6.26401292,159.65,159.6,13.80558924]
[1749721726646,20.06960216,159.65,159.6,19.16558924]
[1749721728558,20.06960216,159.65,159.61,13.80558924]
[1749721729215,13.80558924,159.63,159.6,5.36]
[1749721730431,6.26487908,159.62,159.6,5.36]
[1749721731424,20.07046832,159.62,159.6,5.36]
[1749721734950,20.07086083,159.61,159.6,5.36]
[1749721735325,6.26527159,159.61,159.6,5.36]
[1749721736249,6.26502631,159.62,159.6,8.84220613]
[1749721736634,6.26502631,159.62,159.56,5.36]
[1749721736635,15.10723244,159.62,159.56,5.36]
[1749721736948,15.10723244,159.62,159.58,8.84220613]
[1749721737445,20.07947412,159.62,159.58,13.81444781]
[1749721738233,6.26502631,159.62,159.58,13.81444781]
[1749721738432,20.07947412,159.62,159.58,13.81444781]
[1749721738638,20.07947412,159.62,159.57,13.81444781]
[1749721741146,6.26502631,159.62,159.57,13.81444781]
[1749721741446,20.07947412,159.62,159.57,13.81444781]
[1749721742350,13.81444781,159.6,159.56,19.17444781]
[1749721743555,6.26605677,159.59,159.56,19.17444781]
[1749721745645,6.26566416,159.6,159.56,19.17444781]
[1749721746161,13.81444781,159.59,159.56,5.36]
[1749721746331,61.74427237,159.6,159.56,5.36]
[1749721747550,61.74427237,159.6,159.55,13.81444781]
[1749721747753,61.74427237,159.6,159.55,19.17444781]
[1749721748145,61.74427237,159.6,159.56,13.81444781]
[1749721748337,32.26566416,159.6,159.56,13.81444781]
[1749721757260,32.26566416,159.6,159.56,8.84292585]
[1749721758250,32.26566416,159.6,159.55,5.36]
[1749721758766,32.26566416,159.6,159.56,8.84292585]
[1749721760643,32.26566416,159.6,159.57,8.84292585]
[1749721761364,41.10859001,159.6,159.56,8.84292585]
[1749721762968,32.26566416,159.6,159.56,8.84292585]
[1749721765064,32.26566416,159.6,159.57,8.84292585]
[1749721766260,32.26566416,159.6,159.54,1.5314]
[1749721766465,32.26566416,159.6,159.57,8.84292585]
[1749721766665,32.26566416,159.6,159.56,8.84292585]
[1749721769381,18.64964886,159.64,159.58,8.84292585]
[1749721769678,154.94493542,159.66,159.62,8.84292585]
[1749721769679,6.26330953,159.66,159.62,8.84292585]
[1749721769851,31.62330953,159.66,159.63,8.84292585]
[1749721770055,31.62330953,159.66,159.62,8.84292585]
[1749721770056,26.0,159.64,159.62,8.84292585]
[1749721773770,32.26415384,159.64,159.62,8.84292585]
[1749721775265,32.26415384,159.64,159.61,8.84292585]
[1749721778376,32.26415384,159.64,159.62,8.84292585]
[1749721779285,32.26415384,159.64,159.61,8.84292585]
[1749721781065,26.0,159.64,159.61,8.84292585]
[1749721781257,26.0,159.67,159.63,8.84292585]
[1749721781462,6.26329863,159.67,159.63,8.84292585]
[1749721781682,31.60329863,159.67,159.63,8.84292585]
[1749721781879,31.60329863,159.67,159.64,8.84292585]
[1749721782075,6.26265812,159.68,159.65,8.84292585]
[1749721782568,31.60265812,159.68,159.65,8.84292585]
[1749721782963,31.60265812,159.68,159.6,35.3717034]
[1749721783162,6.26265812,159.68,159.64,8.84292585]
[1749721783374,31.60265812,159.68,159.64,8.84292585]
[1749721783778,40.44558397,159.68,159.64,8.84292585]
[1749721784786,40.44558397,159.68,159.63,8.84292585]
[1749721787493,40.44558397,159.68,159.64,8.84292585]
[1749721788970,40.44558397,159.68,159.63,8.84292585]
[1749721789383,6.26265812,159.68,159.65,8.84292585]
[1749721789580,31.60265812,159.68,159.65,8.84292585]
[1749721789785,31.60265812,159.68,159.64,8.84292585]
[1749721793176,6.26265812,159.68,159.64,8.84292585]
[1749721793377,31.60265812,159.68,159.64,8.84292585]
[1749721795014,40.44558397,159.68,159.64,8.84292585]
[1749721795297,31.60265812,159.68,159.64,8.84292585]
[1749721795798,40.44558397,159.68,159.64,8.84292585]
[1749721796305,31.60265812,159.68,159.65,8.84292585]
[1749721798381,26.0,159.67,159.66,8.84292585]
[1749721800603,32.26298813,159.67,159.62,5.34]
[1749721800805,32.26298813,159.67,159.64,8.84292585]
[1749721802016,32.26298813,159.67,159.63,8.84292585]
[1749721802179,32.26298813,159.67,159.62,5.34]
[1749721802180,66.44591398,159.67,159.62,14.18292585]
[1749721802379,8.84292585,159.65,159.62,5.34]
[1749721802578,6.26409421,159.64,159.62,5.34]
[1749721804705,15.10702006,159.64,159.62,5.34]
[1749721805304,34.18292585,159.63,159.62,5.34]
[1749721805697,52.83257471,159.63,159.62,5.34]
[1749721807437,59.09706133,159.63,159.62,5.34]
[1749721808290,18.64964886,159.62,159.55,15.73992585]
[1749721808491,8.84292585,159.6,159.56,8.84292585]
[1749721808793,8.84292585,159.6,159.55,6.897]
[1749721808997,8.84292585,159.6,159.56,8.84292585]
[1749721809419,20.08295197,159.6,159.56,13.81728781]
[1749721810198,6.26566416,159.6,159.56,13.81728781]
[1749721810500,6.26566416,159.6,159.57,13.81728781]
[1749721814020,6.26566416,159.6,159.56,13.81728781]
[1749721815214,6.26566416,159.6,159.55,6.897]
[1749721815402,13.81728781,159.58,159.55,5.34]
[1749721815714,13.81728781,159.59,159.55,5.34]
[1749721816219,6.26566416,159.6,159.56,13.81728781]
[1749721816220,20.08295197,159.6,159.56,13.81728781]
[1749721816585,13.81728781,159.59,159.55,19.15728781]
[1749721817617,6.26631713,159.59,159.55,19.15728781]
[1749721817919,6.26631713,159.59,159.56,13.81728781]
[1749721819324,20.08295197,159.6,159.56,13.81728781]
[1749721820739,20.08295197,159.6,159.55,19.15728781]
[1749721820895,13.81728781,159.59,159.55,5.34]
[1749721823127,6.26644942,159.58,159.55,5.34]
[1749721823701,20.08373723,159.58,159.55,5.34]